[Event "FRA-ch 2018 Seniors Veterans"]
[Site "Nimes"]
[Date "2018.08.19"]
[Round "2"]
[White "Vial, Patrick"]
[Black "Delobel, Alain"]
[Result "1-0"]
[ECO "C02"]
[WhiteElo "2139"]
[BlackElo "1761"]
[Annotator "NA"]
[PlyCount "57"]
[EventDate "2018.08.18"]
[EventType "tourn"]
[EventCountry "FRA"]
[SourceTitle "playchess.com"]
[Source "ChessBase"]
[SourceQuality "1"]
[TimeControl "40/5400+30:1800+30"]

1. e4 {[%emt 0:00:00]} e6 {[%emt 0:01:35]} 2. d4 {[%emt 0:00:10]} d5 {[%emt 0:00:18]} 3. e5 {[%emt 0:00:58]} c5 {[%emt 0:00:32]} 4. c3 {[%emt 0:00:16]} Nc6 {[%emt 0:03:05]} 5. Nf3 {[%emt 0:00:12]} Qb6 {[%emt 0:03:11]} 6. a3 {[%emt 0:00:55]} a5 {[%emt 0:01:19]} 7. Be2 {[%emt 0:04:46]} a4 {[%emt 0:02:48]} 8. O-O {[%emt 0:01:25]} c4 {[%emt 0:17:01]} 9. Nbd2 {[%emt 0:06:02]} Be7 {[%emt 0:05:35]} 10. Re1 {[%emt 0:07:50]} Bd7 {[%emt 0:00:10]} 11. Nf1 {[%emt 0:02:46]} h6 {[%emt 0:06:06]} 12. Qc2 {[%emt 0:05:41]} Na5 {[%emt 0:01:49]} 13. Be3 {[%emt 0:01:04]} Nb3 {[%emt 0:03:36]} 14. Rab1 {[%emt 0:00:17]} O-O-O {[%emt 0:00:43]} 15. N3d2 {[%emt 0:06:43]} Bb5 {[%emt 0:08:54]} 16. f4 {[%emt 0:06:48]} g6 {[%emt 0:10:07]} 17. Bf2 {[%emt 0:02:45]} h5 {[%emt 0:00:56]} 18. Nf3 {[%emt 0:04:14]} Nh6 {[%emt 0:06:40]} 19. Ne3 {[%emt 0:00:49]} Nf5 {[%emt 0:05:52]} 20. Nxf5 {[%emt 0:01:16]} gxf5 {[%emt 0:02:23]} 21. Bh4 {[%emt 0:14:07]} Bxh4 {[%emt 0:02:17]} 22. Nxh4 {[%emt 0:00:02]} Nxd4 {[%emt 0:00:13]} 23. cxd4 {[%emt 0:00:05]} Qxd4+ {[%emt 0:00:10]} 24. Kh1 {[%emt 0:00:02]} Qxf4 {[%emt 0:04:28]} 25. Nf3 {[%emt 0:01:53]} Kb8 {[%emt 0:03:18]} 26. Qc3 {[%emt 0:02:24]} d4 {[%emt 0:03:14]} 27. Qb4 {[%emt 0:01:31]} Bc6 {[%emt 0:00:33]} 28. Qxc4 {[%emt 0:01:45]} Be4 29. Rbd1 1-0

[Event "FRA-ch 2018 Seniors Veterans"]
[Site "Nimes"]
[Date "2018.08.19"]
[Round "2"]
[White "Koenig, Joel"]
[Black "Prie, Eric"]
[Result "0-1"]
[ECO "A45"]
[WhiteElo "1772"]
[BlackElo "2480"]
[Annotator "ChessBase"]
[PlyCount "68"]
[EventDate "2018.08.18"]
[EventType "tourn"]
[EventCountry "FRA"]
[SourceTitle "playchess.com"]
[Source "ChessBase"]
[SourceQuality "1"]
[TimeControl "40/5400+30:1800+30"]

1. d4 {[%emt 0:00:00]} Nf6 {[%emt 0:00:00]} 2. Bf4 {[%emt 0:00:02]} c5 {[%emt 0:00:10]} 3. e3 {[%emt 0:00:23]} g6 {[%emt 0:06:49]} 4. Be2 {[%emt 0:04:14]} Bg7 {[%emt 0:08:35]} 5. Nf3 {[%emt 0:02:36]} O-O {[%emt 0:00:39]} 6. O-O {[%emt 0:01:29]} Qb6 {[%emt 0:00:17]} 7. Nbd2 {[%emt 0:04:47]} d5 {[%emt 0:02:21]} 8. Rb1 {[%emt 0:16:46]} Nc6 {[%emt 0:02:09]} 9. dxc5 {[%emt 0:06:08]} Qxc5 {[%emt 0:04:20]} 10. Nb3 {[%emt 0:00:34]} Qb6 {[%emt 0:00:11]} 11. c3 {[%emt 0:01:48]} Re8 {[%emt 0:02:11]} 12. Ne5 {[%emt 0:07:04]} a5 {[%emt 0:12:34]} 13. Nd4 {[%emt 0:10:49]} Ne4 {[%emt 0:00:59]} 14. Ndf3 {[%emt 0:05:58]} Be6 {[%emt 0:03:40]} 15. h3 {[%emt 0:02:46]} a4 {[%emt 0:00:47]} 16. Nxc6 {[%emt 0:05:26]} bxc6 {[%emt 0:02:08]} 17. Be5 {[%emt 0:09:57]} f6 {[%emt 0:18:30]} 18. Bh2 {[%emt 0:00:12]} Bf7 {[%emt 0:00:34]} 19. Bd3 {[%emt 0:02:06]} e5 {[%emt 0:01:11]} 20. Qc2 {[%emt 0:03:26]} Nc5 {[%emt 0:01:47]} 21. Be2 {[%emt 0:00:27]} g5 {[%emt 0:00:49]} 22. b4 {[%emt 0:00:51]} axb3 {[%emt 0:00:24]} 23. axb3 {[%emt 0:00:19]} Bg6 {[%emt 0:00:11]} 24. Qb2 {[%emt 0:02:21]} Bxb1 {[%emt 0:12:19]} 25. Rxb1 {[%emt 0:00:13]} Qa7 {[%emt 0:00:10]} 26. c4 {[%emt 0:01:29]} Qa2 {[%emt 0:00:31]} 27. cxd5 {[%emt 0:01:40]} Qxb2 {[%emt 0:00:21]} 28. Rxb2 {[%emt 0:00:08]} Ra1+ {[%emt 0:00:06]} 29. Bf1 {[%emt 0:00:22]} cxd5 {[%emt 0:00:18]} 30. b4 {[%emt 0:01:01]} Na4 {[%emt 0:06:00]} 31. Rb3 {[%emt 0:00:19]} Rc8 {[%emt 0:00:19]} 32. Bg3 {[%emt 0:01:31]} Rc3 {[%emt 0:02:16]} 33. Rxc3 {[%emt 0:02:33]} Nxc3 {[%emt 0:00:10]} 34. Nd2 {[%emt 0:01:04]} Rd1 {[%emt 0:00:33]} 0-1

[Event "FRA-ch 2018 Seniors Veterans"]
[Site "Nimes"]
[Date "2018.08.19"]
[Round "2"]
[White "Hodot, Yves"]
[Black "Saucey, Michel"]
[Result "1-0"]
[ECO "B20"]
[WhiteElo "1765"]
[BlackElo "2283"]
[Annotator "NA"]
[PlyCount "89"]
[EventDate "2018.08.18"]
[EventType "tourn"]
[EventCountry "FRA"]
[SourceTitle "playchess.com"]
[Source "ChessBase"]
[SourceQuality "1"]
[TimeControl "40/5400+30:1800+30"]

1. e4 {[%emt 0:05:43]} c5 {[%emt 0:00:00]} 2. b4 {[%emt 0:02:10]} cxb4 {[%emt 0:00:00]} 3. c4 {[%emt 0:00:22]} e5 {[%emt 0:00:24]} 4. Bb2 {[%emt 0:00:11]} Nc6 {[%emt 0:00:13]} 5. Nf3 {[%emt 0:00:15]} Bc5 {[%emt 0:00:08]} 6. Be2 {[%emt 0:02:44]} d6 {[%emt 0:00:07]} 7. h3 {[%emt 0:01:08]} Nf6 {[%emt 0:02:48]} 8. d3 {[%emt 0:00:25]} O-O {[%emt 0:00:54]} 9. O-O {[%emt 0:00:40]} a5 {[%emt 0:09:24]} 10. a3 {[%emt 0:08:06]} Ra6 {[%emt 0:12:04]} 11. Nbd2 {[%emt 0:02:39]} Bd7 {[%emt 0:00:48]} 12. Nb3 {[%emt 0:03:27]} Qe7 {[%emt 0:01:06]} 13. Re1 {[%emt 0:16:55]} Rfa8 {[%emt 0:05:57]} 14. a4 {[%emt 0:02:36]} Re8 {[%emt 0:05:54]} 15. Bf1 {[%emt 0:02:43]} Raa8 {[%emt 0:03:51]} 16. g3 {[%emt 0:02:30]} Bc8 {[%emt 0:17:51]} 17. Bg2 {[%emt 0:01:46]} Nd7 {[%emt 0:00:45]} 18. Nh4 {[%emt 0:07:02]} g6 {[%emt 0:00:27]} 19. Qd2 {[%emt 0:01:14]} Bb6 {[%emt 0:01:33]} 20. Kh2 {[%emt 0:11:09]} Nc5 {[%emt 0:02:09]} 21. Nxc5 {[%emt 0:03:41]} Bxc5 {[%emt 0:01:42]} 22. Nf3 {[%emt 0:02:40]} Be6 {[%emt 0:02:58]} 23. Rac1 {[%emt 0:01:52]} Rac8 {[%emt 0:02:36]} 24. Rf1 {[%emt 0:06:15]} Bd7 {[%emt 0:01:52]} 25. Ng1 {[%emt 0:01:06]} Bd4 {[%emt 0:00:17]} 26. Ne2 {[%emt 0:01:52]} Bxb2 {[%emt 0:00:05]} 27. Qxb2 {[%emt 0:00:02]} Nb8 {[%emt 0:02:14]} 28. f4 {[%emt 0:02:06]} Na6 {[%emt 0:00:48]} 29. d4 {[%emt 0:04:22]} exd4 {[%emt 0:00:23]} 30. f5 {[%emt 0:03:15]} Nc5 {[%emt 0:07:00]} 31. Nf4 {[%emt 0:00:57]} Bc6 {[%emt 0:00:34]} 32. Qxd4 {[%emt 0:02:39]} Nb3 {[%emt 0:00:26]} 33. Qe3 {[%emt 0:00:45]} Nxc1 {[%emt 0:00:36]} 34. Qxc1 {[%emt 0:00:51]} Qg5 {[%emt 0:07:11]} 35. h4 {[%emt 0:00:20]} Qh6 {[%emt 0:00:23]} 36. Qb2 {[%emt 0:00:56]} g5 {[%emt 0:00:55]} 37. Nh3 {[%emt 0:00:05]} gxh4 {[%emt 0:00:30]} 38. Rf4 {[%emt 0:00:52]} hxg3+ {[%emt 0:01:03]} 39. Kxg3 {[%emt 0:00:08]} Re5 {[%emt 0:01:28]} 40. Qd4 {[%emt 0:00:51]} Kh8 {[%emt 0:06:32]} 41. Nf2 {[%emt 0:05:17]} Rg8+ {[%emt 0:14:48]} 42. Ng4 {[%emt 0:00:36]} Qf6 {[%emt 0:02:01]} 43. Kh3 {[%emt 0:05:14]} Rxg4 {[%emt 0:03:16]} 44. Rxg4 {[%emt 0:00:57]} Rxf5 {[%emt 0:01:03]} 45. exf5 1-0

[Event "FRA-ch 2018 Seniors Veterans"]
[Site "Nimes"]
[Date "2018.08.20"]
[Round "3"]
[White "Morais, Alain"]
[Black "Vial, Patrick"]
[Result "0-1"]
[ECO "B01"]
[WhiteElo "2006"]
[BlackElo "2139"]
[Annotator "NA"]
[PlyCount "74"]
[EventDate "2018.08.18"]
[EventType "tourn"]
[EventCountry "FRA"]
[SourceTitle "playchess.com"]
[Source "ChessBase"]
[SourceQuality "1"]
[TimeControl "40/5400+30:1800+30"]

1. e4 {[%emt 0:00:10]} d5 {[%emt 0:00:00]} 2. exd5 {[%emt 0:00:22]} Nf6 {[%emt 0:00:00]} 3. d4 {[%emt 0:00:37]} Bg4 {[%emt 0:00:01]} 4. Nf3 {[%emt 0:02:34]} Qxd5 {[%emt 0:00:18]} 5. Be2 {[%emt 0:00:26]} Nc6 {[%emt 0:00:57]} 6. c3 {[%emt 0:07:35]} O-O-O {[%emt 0:01:43]} 7. O-O {[%emt 0:00:45]} e6 {[%emt 0:14:17]} 8. Bf4 {[%emt 0:07:53]} Qf5 {[%emt 0:31:38]} 9. Bg3 {[%emt 0:19:15]} Bd6 {[%emt 0:15:44]} 10. Qa4 {[%emt 0:02:07]} Bxg3 {[%emt 0:00:51]} 11. fxg3 {[%emt 0:00:02]} Qe4 {[%emt 0:03:37]} 12. Qd1 {[%emt 0:12:18]} Qe3+ {[%emt 0:00:15]} 13. Kh1 {[%emt 0:00:45]} Ne4 {[%emt 0:00:01]} 14. Qe1 {[%emt 0:00:22]} h5 {[%emt 0:00:51]} 15. Bb5 {[%emt 0:03:07]} Qxe1 {[%emt 0:00:55]} 16. Rxe1 {[%emt 0:00:01]} f5 {[%emt 0:03:11]} 17. Nbd2 {[%emt 0:00:42]} h4 {[%emt 0:03:04]} 18. gxh4 {[%emt 0:02:52]} Nxd2 {[%emt 0:01:44]} 19. Nxd2 {[%emt 0:00:01]} Rxh4 {[%emt 0:01:02]} 20. h3 {[%emt 0:00:55]} f4 {[%emt 0:00:45]} 21. Be2 {[%emt 0:01:09]} Bf5 {[%emt 0:02:11]} 22. Nf3 {[%emt 0:00:52]} Rh6 {[%emt 0:00:30]} 23. Kg1 {[%emt 0:00:25]} g5 {[%emt 0:02:09]} 24. Bc4 {[%emt 0:00:35]} g4 {[%emt 0:03:21]} 25. hxg4 {[%emt 0:00:13]} Bxg4 {[%emt 0:00:18]} 26. Ng5 {[%emt 0:02:52]} Re8 {[%emt 0:03:11]} 27. Be2 {[%emt 0:00:16]} Bf5 {[%emt 0:01:42]} 28. Bf3 {[%emt 0:00:11]} Rg8 {[%emt 0:04:06]} 29. Nxe6 {[%emt 0:06:14]} Bxe6 {[%emt 0:03:30]} 30. d5 {[%emt 0:01:02]} Bd7 {[%emt 0:01:00]} 31. dxc6 {[%emt 0:00:02]} Bxc6 {[%emt 0:00:13]} 32. Bxc6 {[%emt 0:00:50]} Rxc6 {[%emt 0:00:01]} 33. Re2 {[%emt 0:01:30]} Rcg6 {[%emt 0:00:55]} 34. Kh1 {[%emt 0:04:44]} Rh8+ {[%emt 0:00:46]} 35. Kg1 {[%emt 0:00:01]} Rhg8 {[%emt 0:00:11]} 36. Kh1 {[%emt 0:00:03]} Rh6+ {[%emt 0:00:17]} 37. Kg1 {[%emt 0:00:04]} f3 {[%emt 0:00:01]} 0-1

[Event "FRA-ch 2018 Seniors Veterans"]
[Site "Nimes"]
[Date "2018.08.20"]
[Round "3"]
[White "Cartigny, Patrick"]
[Black "Vareille, Francois"]
[Result "1/2-1/2"]
[ECO "B22"]
[WhiteElo "1910"]
[BlackElo "2421"]
[Annotator "NA RC"]
[PlyCount "48"]
[EventDate "2018.08.18"]
[EventType "tourn"]
[EventCountry "FRA"]
[SourceTitle "playchess.com"]
[Source "ChessBase"]
[SourceQuality "1"]
[TimeControl "40/5400+30:1800+30"]

1. e4 {[%emt 0:01:06]} c5 {[%emt 0:00:06]} 2. c3 {[%emt 0:00:07]} g6 {[%emt 0:00:21]} 3. d4 {[%emt 0:00:09]} cxd4 {[%emt 0:00:14]} 4. cxd4 {[%emt 0:00:06]} d5 {[%emt 0:00:31]} 5. e5 {[%emt 0:05:46]} a6 {[%emt 0:01:15]} 6. h3 {[%emt 0:02:24]} Nc6 {[%emt 0:01:32]} 7. Nf3 {[%emt 0:01:14]} Bg7 {[%emt 0:04:58]} 8. Nc3 {[%emt 0:01:20]} f6 {[%emt 0:01:20]} 9. Bf4 {[%emt 0:09:05]} e6 {[%emt 0:02:17]} 10. Be2 {[%emt 0:08:40]} Nge7 {[%emt 0:03:01]} 11. O-O {[%emt 0:01:34]} O-O {[%emt 0:00:32]} 12. Qd2 {[%emt 0:01:51]} Bd7 $11 {[%emt 0:03:55]} 13. Rfe1 {[%emt 0:04:09]} fxe5 {[%emt 0:03:01]} 14. Nxe5 {[%emt 0:05:04]} Nf5 {[%emt 0:02:38]} 15. Nxc6 {[%emt 0:02:28]} Bxc6 {[%emt 0:01:10]} 16. Bg4 {[%emt 0:11:35]} Nxd4 {[%emt 0:01:30]} 17. Be5 {[%emt 0:06:39]} Bxe5 {[%emt 0:14:20]} 18. Rxe5 {[%emt 0:01:31]} Nf5 {[%emt 0:00:51]} 19. Rxe6 {[%emt 0:01:10]} d4 {[%emt 0:02:30]} 20. Ne2 {[%emt 0:02:32]} Bxg2 {[%emt 0:01:54]} 21. Nf4 {[%emt 0:06:45]} Bc6 {[%emt 0:14:40]} 22. Rae1 {[%emt 0:12:43]} Qg5 {[%emt 0:00:42]} 23. Qc1 {[%emt 0:07:21]} Ng7 {[%emt 0:06:03]} 24. Qc4 {[%emt 0:05:05]} Kh8 {[%emt 0:00:17]} 1/2-1/2

[Event "FRA-ch 2018 Seniors Veterans"]
[Site "Nimes"]
[Date "2018.08.20"]
[Round "3"]
[White "Warnault, Pierre"]
[Black "Ricter, Jean-Paul"]
[Result "0-1"]
[ECO "B01"]
[WhiteElo "1857"]
[BlackElo "2065"]
[Annotator "NA"]
[PlyCount "104"]
[EventDate "2018.08.18"]
[EventType "tourn"]
[EventCountry "FRA"]
[SourceTitle "playchess.com"]
[Source "ChessBase"]
[SourceQuality "1"]
[TimeControl "40/5400+30:1800+30"]

1. e4 {[%emt 0:00:00]} d5 {[%emt 0:00:00]} 2. exd5 {[%emt 0:00:00]} Nf6 {[%emt 0:00:00]} 3. d4 {[%emt 0:00:00]} Nxd5 {[%emt 0:00:35]} 4. Nf3 {[%emt 0:00:22]} g6 {[%emt 0:01:10]} 5. Be2 {[%emt 0:00:57]} Bg7 {[%emt 0:00:10]} 6. O-O {[%emt 0:00:06]} O-O {[%emt 0:00:12]} 7. c3 {[%emt 0:01:55]} Bf5 {[%emt 0:12:31]} 8. Re1 {[%emt 0:02:02]} h6 {[%emt 0:04:33]} 9. Nbd2 {[%emt 0:01:21]} c6 {[%emt 0:06:51]} 10. Nc4 {[%emt 0:04:14]} Nd7 {[%emt 0:05:12]} 11. Bd3 {[%emt 0:03:07]} Bxd3 {[%emt 0:03:15]} 12. Qxd3 {[%emt 0:00:09]} Qc7 {[%emt 0:00:58]} 13. Bd2 {[%emt 0:05:49]} Rad8 {[%emt 0:05:18]} 14. Qc2 {[%emt 0:01:38]} c5 {[%emt 0:02:19]} 15. Ne3 {[%emt 0:16:45]} N7f6 {[%emt 0:09:46]} 16. Nxd5 {[%emt 0:06:29]} Nxd5 {[%emt 0:01:40]} 17. dxc5 {[%emt 0:00:45]} Qxc5 {[%emt 0:00:37]} 18. Be3 {[%emt 0:01:30]} Nxe3 {[%emt 0:02:48]} 19. Rxe3 {[%emt 0:00:11]} Rd7 {[%emt 0:03:43]} 20. Rd1 {[%emt 0:05:45]} Rfd8 {[%emt 0:01:31]} 21. Red3 {[%emt 0:02:53]} Rd6 {[%emt 0:01:38]} 22. Rxd6 {[%emt 0:03:07]} Rxd6 {[%emt 0:00:44]} 23. Rxd6 {[%emt 0:00:13]} Qxd6 {[%emt 0:00:28]} 24. h3 {[%emt 0:04:25]} a6 {[%emt 0:05:30]} 25. c4 {[%emt 0:03:18]} Qf6 {[%emt 0:01:47]} 26. b3 {[%emt 0:00:57]} Qa1+ {[%emt 0:00:32]} 27. Kh2 {[%emt 0:00:15]} Qf6 {[%emt 0:05:09]} 28. Qe2 {[%emt 0:01:30]} Qd6+ {[%emt 0:00:45]} 29. Kg1 {[%emt 0:00:40]} Bf6 {[%emt 0:00:29]} 30. Qd2 {[%emt 0:01:36]} Qxd2 {[%emt 0:04:37]} 31. Nxd2 {[%emt 0:00:07]} Kf8 {[%emt 0:00:21]} 32. Kf1 {[%emt 0:00:55]} Ke8 {[%emt 0:00:32]} 33. Ke2 {[%emt 0:00:11]} Kd7 {[%emt 0:00:31]} 34. Kd3 {[%emt 0:00:37]} Kc6 {[%emt 0:01:54]} 35. f3 {[%emt 0:01:56]} e6 {[%emt 0:02:37]} 36. Ne4 {[%emt 0:05:09]} Be7 {[%emt 0:00:54]} 37. Nf2 {[%emt 0:08:19]} f5 {[%emt 0:00:43]} 38. g4 {[%emt 0:01:19]} Kc5 {[%emt 0:01:20]} 39. gxf5 {[%emt 0:02:31]} gxf5 {[%emt 0:02:51]} 40. Nd1 {[%emt 0:01:02]} Kb4 {[%emt 0:05:17]} 41. Kc2 {[%emt 0:32:30]} Bf6 {[%emt 0:31:51]} 42. Nf2 {[%emt 0:01:02]} Bd4 {[%emt 0:02:58]} 43. Nd3+ {[%emt 0:01:21]} Ka5 {[%emt 0:00:00]} 44. Nf4 {[%emt 0:00:00]} e5 {[%emt 0:00:00]} 45. Ne6 {[%emt 0:00:00]} Bf2 {[%emt 0:00:00]} 46. Ng7 {[%emt 0:00:00]} e4 {[%emt 0:00:00]} 47. fxe4 {[%emt 0:00:00]} fxe4 {[%emt 0:00:00]} 48. Nf5 {[%emt 0:00:00]} h5 {[%emt 0:00:00]} 49. Nd6 {[%emt 0:00:00]} e3 {[%emt 0:00:00]} 50. Kd3 {[%emt 0:00:00]} Kb4 {[%emt 0:00:00]} 51. Nxb7 {[%emt 0:00:00]} Ka3 {[%emt 0:00:00]} 52. Nc5 {[%emt 0:00:00]} e2 {[%emt 0:00:00]} 0-1

[Event "FRA-ch 2018 Seniors Veterans"]
[Site "Nimes"]
[Date "2018.08.21"]
[Round "4"]
[White "Ricter, Jean-Paul"]
[Black "Darrigues, Alain"]
[Result "1-0"]
[ECO "B21"]
[WhiteElo "2065"]
[BlackElo "1808"]
[Annotator "NA RC"]
[PlyCount "71"]
[EventDate "2018.08.18"]
[EventType "tourn"]
[EventCountry "FRA"]
[SourceTitle "playchess.com"]
[Source "ChessBase"]
[SourceQuality "1"]
[TimeControl "40/5400+30:1800+30"]

1. e4 {[%emt 0:00:00]} c5 {[%emt 0:00:00]} 2. d4 {[%emt 0:00:00]} cxd4 {[%emt 0:00:00]} 3. c3 {[%emt 0:00:02]} Nf6 {[%emt 0:00:00]} 4. e5 {[%emt 0:00:26]} Nd5 {[%emt 0:00:00]} 5. Qxd4 {[%emt 0:00:30]} e6 {[%emt 0:00:41]} 6. Nf3 {[%emt 0:01:59]} Nc6 {[%emt 0:05:07]} 7. Qe4 {[%emt 0:00:25]} Be7 {[%emt 0:04:44]} 8. Bc4 {[%emt 0:06:04]} f5 {[%emt 0:05:40]} 9. Qe2 {[%emt 0:04:33]} Nc7 {[%emt 0:04:04]} 10. O-O {[%emt 0:02:30]} O-O {[%emt 0:08:28]} 11. b4 {[%emt 0:22:10]} b6 {[%emt 0:04:13]} 12. a4 {[%emt 0:05:53]} a6 {[%emt 0:05:33]} 13. Rd1 {[%emt 0:03:04]} Qe8 {[%emt 0:03:09]} 14. Nbd2 {[%emt 0:03:09]} Kh8 {[%emt 0:01:22]} 15. Bb3 Qh5 {[%emt 0:03:59]} 16. Nc4 {[%emt 0:07:47]} Nd5 {[%emt 0:01:34]} 17. Rxd5 {[%emt 0:07:25]} exd5 {[%emt 0:00:17]} 18. Nxb6 {[%emt 0:00:09]} Rb8 {[%emt 0:03:07]} 19. Nxd5 {[%emt 0:00:13]} Bb7 {[%emt 0:00:55]} 20. Nf4 {[%emt 0:01:55]} Qe8 {[%emt 0:01:31]} 21. Bc4 {[%emt 0:01:44]} g5 {[%emt 0:05:25]} 22. Nd5 {[%emt 0:02:31]} g4 {[%emt 0:02:04]} 23. Ne1 {[%emt 0:00:33]} Bd8 {[%emt 0:08:18]} 24. Nd3 {[%emt 0:00:51]} h5 {[%emt 0:12:27]} 25. Qe3 {[%emt 0:03:08]} Qg6 {[%emt 0:01:50]} 26. N3f4 {[%emt 0:05:03]} Qh7 {[%emt 0:00:55]} 27. Qc5 {[%emt 0:01:05]} Re8 {[%emt 0:01:22]} 28. Be3 {[%emt 0:03:18]} Rc8 {[%emt 0:04:21]} 29. Qd6 {[%emt 0:04:47]} Re6 {[%emt 0:05:44]} 30. Qf8+ {[%emt 0:01:55]} Qg8 {[%emt 0:00:37]} 31. Qxg8+ {[%emt 0:01:05]} Kxg8 {[%emt 0:00:01]} 32. Nxe6 {[%emt 0:00:34]} dxe6 {[%emt 0:00:07]} 33. Nf4 {[%emt 0:01:30]} Nxe5 {[%emt 0:02:32]} 34. Bxe6+ {[%emt 0:00:34]} Kf8 {[%emt 0:00:30]} 35. Bxc8 {[%emt 0:00:54]} Bxc8 {[%emt 0:00:02]} 36. Rd1 1-0

[Event "FRA-ch 2018 Seniors Veterans"]
[Site "Nimes"]
[Date "2018.08.22"]
[Round "5"]
[White "Dussol, Pierre"]
[Black "Dijon, Frederic"]
[Result "1-0"]
[ECO "C02"]
[WhiteElo "2096"]
[BlackElo "1901"]
[Annotator "NA"]
[PlyCount "59"]
[EventDate "2018.08.18"]
[EventType "tourn"]
[EventCountry "FRA"]
[SourceTitle "playchess.com"]
[Source "ChessBase"]
[SourceQuality "1"]
[TimeControl "40/5400+30:1800+30"]

1. e4 {[%emt 0:01:20]} e6 {[%emt 0:00:44]} 2. d4 {[%emt 0:01:32]} d5 {[%emt 0:00:09]} 3. e5 {[%emt 0:01:12]} c5 {[%emt 0:00:31]} 4. Nf3 {[%emt 0:00:47]} Nc6 {[%emt 0:01:34]} 5. Bd3 {[%emt 0:01:09]} Nh6 {[%emt 0:03:44]} 6. dxc5 {[%emt 0:07:19]} Nf5 {[%emt 0:02:17]} 7. O-O {[%emt 0:01:56]} Bxc5 {[%emt 0:01:47]} 8. Bf4 {[%emt 0:01:34]} h6 $11 {[%emt 0:01:03]} 9. Bxf5 {[%emt 0:13:17]} exf5 {[%emt 0:01:19]} 10. h4 {[%emt 0:01:00]} Be6 {[%emt 0:00:19]} 11. Nc3 {[%emt 0:04:05]} a6 {[%emt 0:07:40]} 12. a3 {[%emt 0:07:16]} Be7 {[%emt 0:03:11]} 13. h5 {[%emt 0:08:24]} g5 {[%emt 0:10:07]} 14. hxg6 {[%emt 0:02:02]} fxg6 {[%emt 0:02:03]} 15. Ne2 {[%emt 0:02:57]} g5 {[%emt 0:11:33]} 16. Nfd4 {[%emt 0:03:16]} Nxd4 {[%emt 0:03:31]} 17. Nxd4 {[%emt 0:00:19]} Qb6 {[%emt 0:02:33]} 18. Be3 {[%emt 0:11:45]} Bc5 {[%emt 0:05:32]} 19. Nxe6 {[%emt 0:11:13]} Bxe3 {[%emt 0:00:26]} 20. Ng7+ {[%emt 0:01:55]} Kf8 {[%emt 0:03:13]} 21. Nxf5 {[%emt 0:00:25]} Bf4 {[%emt 0:01:24]} 22. Qxd5 {[%emt 0:03:35]} Rd8 {[%emt 0:00:39]} 23. Nd6 {[%emt 0:02:03]} Rh7 {[%emt 0:00:45]} 24. Rad1 {[%emt 0:02:07]} Re7 {[%emt 0:01:41]} 25. Qe4 {[%emt 0:03:38]} Rxe5 {[%emt 0:07:55]} 26. Qg6 {[%emt 0:00:45]} Qc7 {[%emt 0:02:46]} 27. Qf6+ {[%emt 0:00:20]} Kg8 {[%emt 0:00:22]} 28. Nb5 {[%emt 0:00:29]} Rxd1 29. Nxc7 Ree1 30. Qg6+ {Rxf1# g3+} 1-0

[Event "FRA-ch 2018 Seniors Veterans"]
[Site "Nimes"]
[Date "2018.08.22"]
[Round "5"]
[White "Busson, Benoist"]
[Black "Saucey, Michel"]
[Result "1/2-1/2"]
[ECO "B23"]
[WhiteElo "1882"]
[BlackElo "2283"]
[Annotator "NA"]
[PlyCount "81"]
[EventDate "2018.08.18"]
[EventType "tourn"]
[EventCountry "FRA"]
[SourceTitle "playchess.com"]
[Source "ChessBase"]
[SourceQuality "1"]
[TimeControl "40/5400+30:1800+30"]

1. e4 {[%emt 0:00:00]} c5 {[%emt 0:00:00]} 2. Nc3 {[%emt 0:00:20]} e6 {[%emt 0:01:01]} 3. Nge2 {[%emt 0:02:55]} a6 {[%emt 0:00:23]} 4. g3 {[%emt 0:02:34]} Qc7 {[%emt 0:02:42]} 5. Bg2 {[%emt 0:00:32] LiveBook: 10 Games} Nf6 {[%emt 0:00:55]} 6. O-O {[%emt 0:01:04]} Be7 {[%emt 0:00:30]} 7. d4 {[%emt 0:02:29]} cxd4 {[%emt 0:00:21]} 8. Nxd4 {[%emt 0:00:07]} d6 {[%emt 0:01:42]} 9. Kh1 {[%emt 0:03:22] B80: Sicilian Scheveningen: 6 g3 and 6 Be3, including English Attack} (9. Be3 Nc6 10. a4 O-O 11. Nxc6 bxc6 12. a5 Nd7 13. Na4 Rb8 14. Nb6 c5 15. Nxc8 Rfxc8 16. b3 Bf6 17. Ra4 Ne5 18. Re1 Nc6 19. Qd2 Bd4 20. Bf1 Bxe3 21. Rxe3 {0-1 (54) Leko,P (2693)-Navara,D (2725) Tallinn 2016}) 9... Bd7 {[%emt 0:02:23]} 10. f4 {[%emt 0:05:00]} Nc6 {[%emt 0:00:19]} 11. f5 {[%emt 0:07:20]} Nxd4 {[%emt 0:00:52]} 12. Qxd4 {[%emt 0:00:21]} O-O {[%emt 0:01:20]} 13. fxe6 $146 {[%emt 0:01:56]} ({Predecessor:} 13. Bg5 Rad8 14. Rad1 exf5 15. exf5 Bc6 16. Qd2 Rfe8 17. Be3 d5 18. Bd4 Ne4 19. Nxe4 dxe4 20. Qe3 Rxd4 {½-½ (20) Dabic,S (2214)-Sentic,P (2217) Croatia 2009}) 13... fxe6 {[%emt 0:01:08]} 14. Be3 {[%emt 0:05:13]} Rac8 {[%emt 0:00:35]} 15. Qb6 {[%emt 0:01:12]} Bc6 {[%emt 0:09:18]} ({Better is} 15... Ng4 $17) 16. Qb3 {[%emt 0:02:54]} Bd7 {[%emt 0:01:54]} 17. Rad1 {[%emt 0:03:23]} b5 {[%emt 0:00:29]} 18. Bh3 {[%emt 0:08:53]} Qc4 $11 {[%emt 0:04:52]} 19. Qxc4 {[%emt 0:00:31]} Rxc4 {[%emt 0:00:11]} 20. e5 {[%emt 0:00:14]} Ng4 {[%emt 0:04:03]} 21. Rxf8+ {[%emt 0:09:21]} Bxf8 {[%emt 0:01:10]} 22. Bxg4 {[%emt 0:02:25]} Rxg4 {[%emt 0:00:19]} 23. Bf4 {[%emt 0:03:41]} Bc6+ {[%emt 0:01:45]} 24. Kg1 {[%emt 0:00:10]} dxe5 {[%emt 0:00:25]} 25. Bxe5 {[%emt 0:01:27]} Rc4 {[%emt 0:05:23]} 26. b3 {[%emt 0:03:14]} Rc5 {[%emt 0:01:35]} 27. Bd4 {[%emt 0:00:18]} Rf5 {[%emt 0:00:30]} 28. Rf1 {[%emt 0:01:23]} Bc5 {[%emt 0:09:37]} 29. Ne2 {[%emt 0:00:55]} Rd5 {[%emt 0:01:49]} 30. c3 {[%emt 0:03:43]} e5 {[%emt 0:00:32]} 31. Bxc5 {[%emt 0:00:34]} Rxc5 {[%emt 0:00:23]} 32. Kf2 {[%emt 0:01:38]} Be8 {[%emt 0:03:48]} 33. Ke3 {[%emt 0:01:21]} Bg6 {[%emt 0:00:46]} 34. Rd1 {[%emt 0:01:11]} Rc6 {[%emt 0:00:37]} 35. Rd5 {[%emt 0:01:02]} Re6 {[%emt 0:00:32]} 36. h4 {[%emt 0:01:50]} Bh5 {[%emt 0:06:04]} 37. Ng1 {[%emt 0:02:15]} Kf7 {[%emt 0:01:31]} 38. Nh3 {[%emt 0:03:25]} h6 {[%emt 0:00:25]} 39. Nf2 {[%emt 0:00:29]} Bg6 {[%emt 0:05:43]} 40. Ng4 {[%emt 0:03:31]} Bb1 {[%emt 0:02:42]} 41. Rxe5 {[%emt 0:38:18]} 1/2-1/2